fUST/lending_fUST_20250625
["ID","MTS","AMOUNT","RATE_DAILY","PERIOD"]
[367404423,1750785047742,-806.96,0.0001889,2]
[367404424,1750785047751,-460.0,0.0001889,2]
[367404425,1750785047761,-1718.2,0.0001889,2]
[367404426,1750785047770,-1574.79,0.0001889,2]
[367404427,1750785047779,-2657.44,0.0001889,2]
[367404428,1750785047788,-460.0,0.0001889,2]
[367404429,1750785047798,-1229.31,0.0001889,2]
[367404430,1750785047808,-781.13,0.0001889,2]
[367404431,1750785047817,-607.42,0.0001889,2]
[367404432,1750785047827,-561.56,0.0001889,2]
[367404433,1750785047836,-526.37,0.0001889,2]
[367404434,1750785047845,-697.64,0.0001889,2]
[367404435,1750785047854,-460.0,0.00018895,2]
[367404436,1750785047864,-460.0,0.00018895,2]
[367404437,1750785047873,-580.43,0.00018895,2]
[367404438,1750785047883,-528.16,0.00018895,2]
[367404439,1750785047891,-460.0,0.00018897,2]
[367404440,1750785047901,-460.0,0.00018897,2]
[367404441,1750785047910,-920.05,0.00018897,2]
[367404442,1750785047920,-460.0,0.00018897,2]
[367404443,1750785047929,-583.13,0.00018897,2]
[367404444,1750785047938,-151.0,0.00018899,2]
[367404445,1750785047948,-774.22,0.00018899,2]
[367404446,1750785047959,-151.0,0.00018899,2]
[367404447,1750785047968,-586.45,0.00018899,2]
[367404448,1750785047977,-293.966563,0.00018899,2]
[367404449,1750785047986,-572.14,0.00018899,2]
[367404450,1750785047996,-151.0,0.00018899,2]
[367404451,1750785048005,-460.0,0.00018899,2]
[367404452,1750785048015,-197.398771,0.00018899,2]
[367404453,1750785048024,-481.7880995,0.00018899,2]
[367404454,1750785048034,-1194.79,0.00018899,2]
[367404455,1750785048043,-563.35,0.00018899,2]
[367404456,1750785048052,-460.0,0.00018899,2]
[367404457,1750785048062,-460.0,0.00018899,2]
[367404458,1750785048071,-528.22,0.00018899,2]
[367404459,1750785048081,-1874.29,0.000189,2]
[367404460,1750785048090,-151.0,0.000189,2]
[367404461,1750785048099,-216.373365,0.000189,2]
[367404462,1750785048108,-151.0,0.000189,2]
[367404463,1750785048117,-460.0,0.000189,2]
[367404464,1750785048126,-151.0,0.000189,2]
[367404465,1750785048135,-151.0,0.000189,2]
[367404466,1750785048145,-155.216599,0.000189,2]
[367404467,1750785048154,-151.0,0.000189,2]
[367404468,1750785048163,-460.0,0.000189,2]
[367404469,1750785048172,-293.483544,0.000189,2]
[367404470,1750785048182,-151.0,0.000189,2]
[367404471,1750785048191,-293.483544,0.000189,2]
[367404472,1750785048200,-151.0,0.000189,2]
[367404473,1750785048210,-487.54,0.000189,2]
[367404474,1750785048219,-526.37,0.000189,2]
[367404475,1750785048228,-151.0,0.000189,2]
[367404476,1750785048238,-543.87,0.000189,2]
[367404477,1750785048247,-460.0,0.000189,2]
[367404478,1750785048257,-4413.81,0.000189,2]
[367404479,1750785048266,-709.17,0.000189,2]
[367404480,1750785048275,-460.0,0.000189,2]
[367404481,1750785048284,-953.76,0.000189,2]
[367404482,1750785048294,-629.6,0.000189,2]
[367404483,1750785048304,-613.13,0.000189,2]
[367404484,1750785048314,-1830.83,0.000189,2]
[367404485,1750785048323,-713.89,0.000189,2]
[367404486,1750785048332,-460.0,0.000189,2]
[367404487,1750785048341,-460.0,0.000189,2]
[367404488,1750785048351,-478.16,0.000189,2]
[367404489,1750785048360,-1874.22,0.000189,2]
[367404490,1750785048370,-8221.36503053,0.000189,2]
[367404491,1750785048380,-921.22,0.000189,2]
[367404492,1750785048389,-460.0,0.00018901,2]
[367404493,1750785048399,-1348.12,0.00018901,2]
[367404494,1750785048408,-1881.76,0.00018901,2]
[367404495,1750785048418,-658.73,0.00018901,2]
[367404496,1750785048427,-1357.9,0.00018901,2]
[367404497,1750785048436,-460.0,0.00018901,2]
[367404498,1750785048445,-151.0,0.00018902,2]
[367404499,1750785048455,-151.0,0.00018902,2]
[367404500,1750785048464,-1126.11,0.00018902,2]
[367404501,1750785048473,-523.26,0.00018902,2]
[367404502,1750785048483,-161.823597,0.00018903,2]
[367404503,1750785048492,-229.664431,0.00018903,2]
[367404504,1750785048501,-229.664428,0.00018903,2]
[367404505,1750785048510,-460.0,0.00018904,2]
[367404506,1750785048519,-168.0,0.00018916,2]
[367404507,1750785048528,-1680.0,0.0001892,2]
[367404508,1750785048537,-365.9458251,0.00018995,2]
[367404509,1750785048547,-365.9458251,0.00018995,2]
[367404510,1750785048557,-153.0,0.00019007,2]
[367404511,1750785048567,-153.0,0.00019007,2]
[367404512,1750785048577,-153.0,0.00019007,2]
[367404513,1750785048587,-255.0,0.0001901,2]
[367404514,1750785048597,-969.682,0.00019012,2]
[367404515,1750785048606,-306.0,0.00019014,2]
[367404516,1750785048615,-255.0,0.00019015,2]
[367404517,1750785048624,-3152.0,0.00019017,2]
[367404518,1750785048634,-255.0,0.0001902,2]
[367404519,1750785048643,-196.33897126,0.00019025,2]
[367404520,1750785048653,-179.91004498,0.00019034,2]
[367404521,1750785048662,-1000.0,0.00019046,2]
[367404522,1750785048671,-1000.0,0.00019046,2]
[367404523,1750785048681,-1000.0,0.00019046,2]
[367404524,1750785048691,-1000.0,0.00019046,2]
[367404525,1750785048700,-151.0,0.00019061,2]
[367404526,1750785048709,-151.0,0.00019061,2]
[367404527,1750785048718,-151.0,0.00019062,2]
[367404528,1750785048729,-242.002,0.00019062,2]
[367404529,1750785048738,-151.0,0.00019062,2]
[367404530,1750785048748,-335.103973,0.00019062,2]
[367404531,1750785048757,-335.103973,0.00019062,2]
[367404532,1750785048767,-201.518914,0.00019062,2]
[367404533,1750785048777,-210.547615,0.00019062,2]
[367404534,1750785048789,-574.8597778,0.00019062,2]
[367404535,1750785048800,-158.8997821,0.00019062,2]
[367404536,1750785048815,-574.8597778,0.00019062,2]
[367404537,1750785048825,-159.1692736,0.00019062,2]
[367404538,1750785048835,-574.8597778,0.00019062,2]
[367404539,1750785048844,-159.1692736,0.00019062,2]
[367404540,1750785048854,-159.1692736,0.00019062,2]
[367404541,1750785048864,-159.1692736,0.00019062,2]
[367404542,1750785048873,-574.8597778,0.00019062,2]
[367404543,1750785048883,-159.1692736,0.00019062,2]
[367404544,1750785048893,-574.8597778,0.00019062,2]
[367404545,1750785048902,-700.0,0.00019068,2]
[367404546,1750785048911,-168.42003544,0.00019076,2]
[367404547,1750785048921,-238.7393976,0.0001908,2]
[367404548,1750785048930,-177.3826656,0.0001908,2]
[367404549,1750785048940,-654.0,0.00019084,2]
[367404550,1750785048950,-2160.0,0.00019084,2]
[367404551,1750785048959,-415.0,0.00019084,2]
[367404552,1750785048969,-406.0,0.00019084,2]
[367404553,1750785048978,-159.1692736,0.00019098,2]
[367404554,1750785048987,-574.8597778,0.00019098,2]
[367404555,1750785048997,-318.3385472,0.00019098,2]
[367404556,1750785049006,-574.8597778,0.00019098,2]
[367404557,1750785049015,-159.1692736,0.00019098,2]
[367404558,1750785049025,-6551.079999,0.000191,2]
[367404559,1750785049034,-1054.97647579,0.00019127,2]
[367404560,1750785049044,-1000.0,0.00019127,2]
[367404561,1750785049054,-1000.0,0.00019127,2]
[367404562,1750785049064,-1000.0,0.00019127,2]
[367404563,1750785049074,-2928.36,0.00019162,2]
[367404564,1750785049084,-473.47,0.00019162,2]
[367404565,1750785049093,-460.0,0.00019163,2]
[367404566,1750785049103,-151.0,0.00019163,2]
[367404567,1750785049113,-151.0,0.00019163,2]
[367404568,1750785049122,-1955.78,0.00019164,2]
[367404569,1750785049132,-2843.3,0.00019164,2]
[367404570,1750785049142,-806.96,0.00019164,2]
[367404571,1750785049150,-460.0,0.00019164,2]
[367404572,1750785049160,-1718.2,0.00019164,2]
[367404573,1750785049170,-1574.79,0.00019164,2]
[367404574,1750785049179,-2657.44,0.00019164,2]
[367404575,1750785049188,-460.0,0.00019164,2]
[367404576,1750785049198,-1229.31,0.00019164,2]
[367404577,1750785049207,-781.13,0.00019164,2]
[367404578,1750785049216,-607.42,0.00019164,2]
[367404579,1750785049225,-561.56,0.00019164,2]
[367404580,1750785049234,-526.37,0.00019164,2]
[367404581,1750785049244,-697.64,0.00019164,2]
[367404582,1750785049253,-460.0,0.00019169,2]
[367404583,1750785049263,-460.0,0.00019169,2]
[367404584,1750785049273,-580.43,0.00019169,2]
[367404585,1750785049283,-528.16,0.00019169,2]
[367404586,1750785049427,-460.0,0.00019171,2]
[367404587,1750785049437,-460.0,0.00019171,2]
[367404588,1750785049447,-920.05,0.00019171,2]
[367404589,1750785049456,-460.0,0.00019171,2]
[367404590,1750785049466,-583.13,0.00019171,2]
[367404591,1750785049475,-774.22,0.00019173,2]
[367404592,1750785049485,-586.45,0.00019173,2]
[367404593,1750785049494,-572.14,0.00019173,2]
[367404594,1750785049504,-460.0,0.00019173,2]
[367404595,1750785049514,-1194.79,0.00019173,2]
[367404596,1750785049524,-563.35,0.00019173,2]
[367404597,1750785049533,-460.0,0.00019173,2]
[367404598,1750785049543,-460.0,0.00019173,2]
[367404599,1750785049553,-528.22,0.00019173,2]
[367404600,1750785049563,-1874.29,0.00019174,2]
[367404601,1750785049573,-460.0,0.00019174,2]
[367404602,1750785049583,-460.0,0.00019174,2]
[367404603,1750785049592,-487.54,0.00019174,2]
[367404604,1750785049602,-526.37,0.00019174,2]
[367404605,1750785049611,-151.0,0.00019174,2]
[367404606,1750785049621,-287.422844,0.00019174,2]
[367404607,1750785049630,-151.0,0.00019174,2]
[367404608,1750785049639,-543.87,0.00019174,2]
[367404609,1750785049648,-151.0,0.00019174,2]
[367404610,1750785049658,-151.0,0.00019174,2]
[367404611,1750785049668,-528.92139,0.00019174,2]
[367404612,1750785049677,-528.92139,0.00019174,2]
[367404613,1750785049688,-460.0,0.00019174,2]
[367404614,1750785049698,-4413.81,0.00019174,2]
[367404615,1750785049707,-709.17,0.00019174,2]
[367404616,1750785049716,-460.0,0.00019174,2]
[367404617,1750785049728,-953.76,0.00019174,2]
[367404618,1750785049738,-629.6,0.00019174,2]
[367404619,1750785049747,-613.13,0.00019174,2]
[367404620,1750785049756,-1830.83,0.00019174,2]
[367404621,1750785049766,-713.89,0.00019174,2]
[367404622,1750785049776,-460.0,0.00019174,2]
[367404623,1750785049785,-460.0,0.00019174,2]
[367404624,1750785049795,-478.16,0.00019174,2]
[367404625,1750785049807,-151.0,0.00019174,2]
[367404626,1750785049817,-1874.22,0.00019174,2]
[367404627,1750785049827,-921.22,0.00019174,2]
[367404628,1750785049836,-460.0,0.00019175,2]
[367404629,1750785049846,-1348.12,0.00019175,2]
[367404630,1750785049855,-1881.76,0.00019175,2]
[367404631,1750785049864,-658.73,0.00019175,2]
[367404632,1750785049874,-1357.9,0.00019175,2]
[367404633,1750785049884,-460.0,0.00019175,2]
[367404634,1750785049894,-151.0,0.00019176,2]
[367404635,1750785049903,-151.0,0.00019176,2]
[367404636,1750785049914,-151.0,0.00019176,2]
[367404637,1750785049922,-260.283331,0.00019176,2]
[367404638,1750785049931,-1126.11,0.00019176,2]
[367404639,1750785049941,-151.0,0.00019176,2]
[367404640,1750785049950,-563.744354,0.00019176,2]
[367404641,1750785049959,-563.744354,0.00019176,2]
[367404642,1750785049969,-606.551101,0.00019176,2]
[367404643,1750785049979,-606.551101,0.00019176,2]
[367404644,1750785049989,-151.0,0.00019178,2]
[367404645,1750785049998,-151.0,0.00019178,2]
[367404646,1750785050007,-460.0,0.00019178,2]
[367404647,1750785050017,-1000.0,0.00019178,2]
[367404648,1750785050027,-1000.0,0.00019178,2]
[367404649,1750785050036,-1000.0,0.00019178,2]
[367404650,1750785050046,-1000.0,0.00019178,2]
[367404651,1750785050057,-1000.0,0.00019178,2]
[367404652,1750785050067,-1000.0,0.00019178,2]
[367404653,1750785050076,-1000.0,0.00019178,2]
[367404654,1750785050086,-1000.0,0.00019178,2]
[367404655,1750785050095,-412.11008734,0.00019178,2]
[367404656,1750785050105,-500.0,0.00019178,2]
[367404657,1750785050115,-500.0,0.00019178,2]
[367404658,1750785050125,-500.0,0.00019178,2]
[367404659,1750785050136,-433.53515479,0.00019178,2]
[367404660,1750785050146,-176.331261,0.00019178,2]
[367404661,1750785050155,-1202.4214929,0.00019178,2]
[367404662,1750785050165,-1000.0,0.00019191,2]
[367404663,1750785050174,-1000.0,0.00019191,2]
[367404664,1750785050183,-1000.0,0.00019191,2]
[367404665,1750785050193,-274.17274144,0.00019191,2]
[367404666,1750785050202,-500.0,0.00019191,2]
[367404667,1750785050210,-1000.0,0.00019195,2]
[367404668,1750785050219,-1500.0,0.00019196,2]
[367404669,1750785050229,-14919.36602194,0.000192,2]
[367404670,1750785050239,-151.0,0.000192,2]
[367404671,1750785050248,-151.0,0.000192,2]
[367404672,1750785050258,-151.0,0.000192,2]
[367404673,1750785050267,-1000.0,0.00019225,2]
[367404674,1750785050276,-1000.0,0.00019225,2]
[367404675,1750785050286,-168.0,0.00019233,2]
[367404676,1750785050297,-1000.0,0.00019238,2]
[367404677,1750785050307,-1085.54040765,0.0001924,2]
[367404678,1750785050317,-508.15203231,0.00019246,2]
[367404679,1750785050326,-500.0,0.00019246,2]
[367404680,1750785050336,-151.0,0.00019246,2]
[367404681,1750785050345,-501.57273664,0.00019268,2]
[367404682,1750785050354,-174.548328,0.00019268,2]
[367404683,1750785050363,-224.481042,0.00019268,2]
[367404684,1750785050373,-151.0,0.00019268,2]
[367404685,1750785050383,-293.483544,0.00019268,2]
[367404686,1750785050392,-151.0,0.00019268,2]
[367404687,1750785050402,-293.483544,0.00019268,2]
[367404688,1750785050411,-151.0,0.00019268,2]
[367404689,1750785050421,-151.0,0.00019268,2]
[367404690,1750785050433,-4880.0,0.000193,2]
[367404691,1750785050443,-250.0,0.000193,2]
[367404692,1750785050452,-250.0,0.000193,2]
[367404693,1750785050462,-72562.37,0.00019316,2]
[367404694,1750785050472,-151.0,0.00019316,2]
[367404695,1750785050481,-151.0,0.00019316,2]
[367404696,1750785050491,-151.0,0.00019316,2]
[367404697,1750785050501,-151.0,0.00019316,2]
[367404698,1750785050511,-151.0,0.00019316,2]
[367404699,1750785050520,-151.0,0.00019316,2]
[367404700,1750785050529,-335.103973,0.00019316,2]
[367404701,1750785050538,-335.103973,0.00019316,2]
[367404702,1750785050548,-151.0,0.00019316,2]
[367404703,1750785050558,-151.0,0.00019316,2]
[367404704,1750785050568,-151.0,0.00019329,2]
[367404705,1750785050577,-183.45312,0.00019329,2]
[367404706,1750785050587,-163.655911,0.00019329,2]
[367404707,1750785050596,-151.0,0.00019329,2]
[367404708,1750785050605,-151.0,0.00019329,2]
[367404709,1750785050614,-293.483544,0.00019329,2]
[367404710,1750785050624,-151.0,0.00019329,2]
[367404711,1750785050633,-293.483544,0.00019329,2]
[367404712,1750785050642,-264.265534,0.00019329,2]
[367404713,1750785050651,-151.0,0.00019329,2]
[367404714,1750785050660,-151.0,0.00019329,2]
[367404715,1750785050671,-151.0,0.00019329,2]
[367404716,1750785050680,-151.0,0.00019329,2]
[367404717,1750785050689,-151.0,0.00019329,2]
[367404718,1750785050699,-151.0,0.00019329,2]
[367404719,1750785050708,-563.744354,0.00019329,2]
[367404720,1750785050718,-563.744354,0.00019329,2]
[367404721,1750785050730,-151.0,0.00019329,2]
[367404722,1750785050739,-606.551101,0.00019329,2]
[367404723,1750785050749,-606.551101,0.00019329,2]
[367404724,1750785050758,-151.0,0.00019329,2]
[367404725,1750785050768,-151.0,0.00019329,2]
[367404726,1750785050778,-528.92139,0.00019329,2]
[367404727,1750785050787,-528.92139,0.00019329,2]
[367404728,1750785050797,-151.0,0.00019329,2]
[367404729,1750785050807,-151.0,0.00019329,2]
[367404730,1750785050816,-151.0,0.00019329,2]
[367404731,1750785050826,-100000.0,0.00019329,2]
[367404732,1750785050835,-200.0,0.0001934,2]
[367404733,1750785050844,-150.0,0.00019387,2]
[367404734,1750785050853,-1000.0,0.00019398,2]
[367404735,1750785050863,-286.99970969,0.00019398,2]
[367404736,1750785050872,-40022.78681963,0.00019399,2]
[367404737,1750785050881,-332969.66127512,0.00019399,2]
[367404738,1750785050900,-1839.59115232,0.00019399,2]
[367404739,1750785050912,-7355.30643935,0.00019399,2]
[367404740,1750785051119,-460.0,0.00017242,2]
[367404741,1750785051128,-460.0,0.00017251,2]
[367404742,1750785051138,-151.0,0.00017615,2]
[367404743,1750785051148,-250.0,0.0001884,2]
[367404744,1750785051158,-4929.47041212,0.00019399,2]
[367404745,1750785053002,-460.0,0.00017251,2]
[367404746,1750785053012,-460.0,0.00017255,2]
[367404747,1750785053022,-460.0,0.00017257,2]
[367404748,1750785053031,-460.0,0.00017257,2]
[367404749,1750785053041,-460.0,0.00017531,2]
[367404750,1750785053050,-460.0,0.00017531,2]
[367404751,1750785053061,-365.9458251,0.00018036,2]
[367404752,1750785053070,-581.33,0.00018106,3]
[367404753,1750785053079,-151.0,0.00018342,2]
[367404754,1750785053089,-151.0,0.000186,2]
[367404755,1750785053098,-151.0,0.00018922,2]
[367404756,1750785053108,-151.0,0.00019316,2]
[367404757,1750785053117,-102216.2397358,0.00019399,2]
[367404758,1750785058772,800.0,0.0001707,2]
[367404761,1750785107750,1000.0,0.00024,120]
[367404766,1750785143653,3444.38919251,0.00017093,2]
[367404767,1750785143675,1555.61080749,0.00017093,2]
[367404768,1750785143888,433.87800716,0.00016,2]
[367404792,1750785221304,472.8544132,0.00016438,2]
[367404793,1750785250596,1139.561787,0.00013699,2]
[367404799,1750785283224,395.63153356,0.00023233,120]
[367404801,1750785332080,300.7769209,0.00016242,2]
[367404805,1750785451361,345.83,0.000171,2]
[367404813,1750785584431,15751.48806425,0.0001624,2]
[367404814,1750785584454,9148.51193575,0.0001624,2]
[367404818,1750785718147,10000.0,0.0001624,2]
[367404885,1750786231879,-207.4,0.00017228,2]
[367404887,1750786231889,-830.4,0.00017228,2]
[367404889,1750786231903,-857.6,0.00017228,2]
[367404891,1750786231913,-300.0,0.00017232,2]
[367404893,1750786231922,-259.0,0.00017232,2]
[367404895,1750786231932,-1200.0,0.00017232,2]
[367404897,1750786231942,-460.0,0.00017233,2]
[367404899,1750786231951,-219.02220529,0.00017233,2]
[367404902,1750786231960,-185.72487295,0.00017233,2]
[367404904,1750786231970,-500.0,0.00017233,2]
[367404906,1750786231979,-500.0,0.00017233,2]
[367404908,1750786231989,-500.0,0.00017233,2]
[367404910,1750786231998,-500.0,0.00017233,2]
[367404911,1750786232007,-500.0,0.00017233,2]
[367404913,1750786232016,-500.0,0.00017233,2]
[367404914,1750786232026,-500.0,0.00017233,2]
[367404915,1750786232035,-500.0,0.00017233,2]
[367404916,1750786232044,-500.0,0.00017233,2]
[367404917,1750786232054,-500.0,0.00017233,2]
[367404918,1750786232063,-172.93072173,0.00017233,2]
[367404936,1750786237647,-267.09860424,0.00017232,2]
[367404948,1750786237754,-232.90139576,0.00017232,2]
[367404950,1750786237763,-500.0,0.00017232,2]
[367404952,1750786237772,-500.0,0.00017232,2]
[367404954,1750786237782,-500.0,0.00017232,2]
[367404956,1750786237791,-500.0,0.00017232,2]
[367404958,1750786237802,-500.0,0.00017232,2]
[367404961,1750786237811,-500.0,0.00017232,2]
[367404964,1750786237822,-500.0,0.00017232,2]
[367404965,1750786237832,-500.0,0.00017232,2]
[367404966,1750786237841,-500.0,0.00017232,2]
[367404967,1750786237851,-500.0,0.00017232,2]
[367404968,1750786237860,-500.0,0.00017232,2]
[367404970,1750786237869,-500.0,0.00017232,2]
[367404971,1750786237879,-500.0,0.00017232,2]
[367404972,1750786237888,-500.0,0.00017232,2]
[367404973,1750786237897,-500.0,0.00017232,2]
[367404974,1750786237907,-500.0,0.00017232,2]
[367404975,1750786237916,-500.0,0.00017232,2]
[367404976,1750786237926,-500.0,0.00017232,2]
[367404978,1750786237935,-212.1467119,0.00017232,2]
[367404979,1750786237944,-500.0,0.00017232,2]
[367404980,1750786237953,-500.0,0.00017232,2]
[367404981,1750786237962,-500.0,0.00017232,2]
[367404983,1750786237972,-500.0,0.00017232,2]
[367404984,1750786237982,-500.0,0.00017232,2]
[367404986,1750786237991,-500.0,0.00017232,2]
[367404988,1750786238001,-500.0,0.00017232,2]
[367404990,1750786238010,-500.0,0.00017232,2]
[367404992,1750786238020,-500.0,0.00017232,2]
[367404994,1750786238030,-500.0,0.00017232,2]
[367404996,1750786238040,-500.0,0.00017232,2]
[367404998,1750786238049,-500.0,0.00017232,2]
[367405000,1750786238059,-500.0,0.00017232,2]
[367405002,1750786238068,-500.0,0.00017232,2]
[367405004,1750786238077,-500.0,0.00017232,2]
[367405006,1750786238087,-500.0,0.00017232,2]
[367405008,1750786238097,-500.0,0.00017232,2]
[367405009,1750786238107,-500.0,0.00017232,2]
[367405010,1750786238116,-500.0,0.00017232,2]
[367405012,1750786238125,-500.0,0.00017232,2]
[367405014,1750786238135,-500.0,0.00017232,2]
[367405016,1750786238143,-500.0,0.00017232,2]
[367405018,1750786238153,-500.0,0.00017232,2]
[367405020,1750786238162,-500.0,0.00017232,2]
[367405022,1750786238171,-300.0,0.00017234,2]
[367405024,1750786238181,-1952.24,0.00017234,2]
[367405026,1750786238191,-460.0,0.00017234,2]
[367405028,1750786238200,-460.0,0.00017236,2]
[367405030,1750786238209,-460.92259072,0.00017236,2]
[367405032,1750786238219,-1895.54,0.00017236,2]
[367405034,1750786238228,-1548.47,0.00017236,2]
[367405036,1750786238238,-580.83,0.00017236,2]
[367405038,1750786238248,-460.0,0.00017236,2]
[367405040,1750786238257,-1049.86,0.00017236,2]
[367405042,1750786238267,-1145.46,0.00017236,2]
[367405044,1750786238276,-1771.62,0.00017236,2]
[367405046,1750786238285,-460.0,0.00017236,2]
[367405048,1750786238294,-819.54,0.00017236,2]
[367405050,1750786238304,-520.75,0.00017236,2]
[367405052,1750786238313,-460.0,0.00017236,2]
[367405054,1750786238324,-460.0,0.00017236,2]
[367405056,1750786238333,-460.0,0.00017236,2]
[367405058,1750786238343,-1685.97,0.00017236,2]
[367405060,1750786238356,-548.27,0.00017236,2]
[367405062,1750786238365,-460.0,0.00017237,2]
[367405064,1750786238374,-460.0,0.00017237,2]
[367405066,1750786238383,-460.0,0.00017237,2]
[367405068,1750786238392,-460.0,0.00017237,2]
[367405070,1750786238401,-454.9756487,0.00017237,2]
[367405072,1750786238411,-460.0,0.00017237,2]
[367405074,1750786238420,-460.0,0.00017237,2]
[367405076,1750786238429,-460.0,0.00017237,2]
[367405077,1750786238438,-460.0,0.00017237,2]
[367405078,1750786238447,-815.69,0.00017237,2]
[367405079,1750786238456,-500.0,0.00017237,2]
[367405080,1750786238465,-460.0,0.00017237,2]
[367405081,1750786238474,-626.28,0.00017237,2]
[367405082,1750786238483,-460.0,0.00017237,2]
[367405083,1750786238493,-460.0,0.00017237,2]
[367405084,1750786238502,-460.0,0.00017237,2]
[367405085,1750786238511,-460.0,0.00017238,2]
[367405086,1750786238523,-460.0,0.00017238,2]
[367405087,1750786238532,-460.0,0.00017238,2]
[367405088,1750786238541,-460.0,0.00017238,2]
[367405089,1750786238551,-460.0,0.00017238,2]
[367405090,1750786238561,-460.0,0.00017238,2]
[367405091,1750786238572,-460.0,0.00017238,2]
[367405092,1750786238581,-460.0,0.00017238,2]
[367405093,1750786238590,-460.0,0.00017238,2]
[367405094,1750786238600,-460.0,0.00017238,2]
[367405095,1750786238609,-460.0,0.00017238,2]
[367405096,1750786238618,-460.0,0.00017238,2]
[367405097,1750786238627,-500.0,0.00017238,2]
[367405098,1750786238636,-500.0,0.00017238,2]
[367405099,1750786238646,-460.0,0.00017238,2]
[367405100,1750786238656,-460.0,0.00017238,2]
[367405101,1750786238665,-460.0,0.00017238,2]
[367405102,1750786238675,-460.0,0.00017238,2]
[367405103,1750786238684,-460.0,0.00017238,2]
[367405104,1750786238693,-460.0,0.00017238,2]
[367405105,1750786238703,-460.0,0.00017238,2]
[367405106,1750786238712,-460.0,0.00017238,2]
[367405107,1750786238722,-460.0,0.00017238,2]
[367405108,1750786238731,-460.0,0.00017238,2]
[367405109,1750786238740,-460.0,0.00017238,2]
[367405110,1750786238750,-460.0,0.00017238,2]
[367405111,1750786238759,-460.0,0.00017238,2]
[367405112,1750786238768,-460.0,0.00017238,2]
[367405113,1750786238777,-1000.0,0.00017239,2]
[367405114,1750786238970,-460.0,0.00017239,2]
[367405115,1750786238980,-500.0,0.00017239,2]
[367405116,1750786238990,-460.0,0.00017239,2]
[367405117,1750786238999,-460.0,0.00017239,2]
[367405118,1750786239010,-460.0,0.00017239,2]
[367405119,1750786239020,-460.0,0.00017239,2]
[367405120,1750786239029,-460.0,0.00017239,2]
[367405121,1750786239039,-423.83166655,0.00017239,2]
[367405122,1750786239048,-460.0,0.00017239,2]
[367405123,1750786239058,-460.0,0.00017239,2]
[367405124,1750786239069,-543.77327371,0.00017239,2]
[367405125,1750786239078,-460.0,0.00017239,2]
[367405126,1750786239088,-460.0,0.00017239,2]
[367405127,1750786239098,-406.27023467,0.00017239,2]
[367405128,1750786239107,-460.0,0.00017239,2]
[367405129,1750786239116,-438.01766789,0.00017239,2]
[367405130,1750786239125,-500.0,0.00017239,2]
[367405131,1750786239134,-460.0,0.0001724,2]
[367405132,1750786239144,-1249.53,0.0001724,2]
[367405133,1750786239153,-460.0,0.0001724,2]
[367405134,1750786239162,-460.0,0.0001724,2]
[367405135,1750786239171,-460.0,0.0001724,2]